fUST/lending_fUST_20250719
["ID","MTS","AMOUNT","RATE_DAILY","PERIOD"]
[373077745,1752854434365,-300.0,0.00016464,2]
[373077746,1752854434399,-1200.0,0.00016464,2]
[373077747,1752854434432,-300.0,0.00016464,2]
[373077748,1752854434462,-300.0,0.00016464,2]
[373077749,1752854434622,-2972.69556942,0.00016465,2]
[373077750,1752854434821,-4054.60886116,0.00016465,2]
[373077751,1752854434852,-460.0,0.00016465,2]
[373077752,1752854434887,-470.78227768,0.00016465,2]
[373077753,1752854435087,-29.21772232,0.00016465,2]
[373077754,1752854435117,-500.0,0.00016465,2]
[373077755,1752854435147,-500.0,0.00016465,2]
[373077756,1752854435179,-500.0,0.00016465,2]
[373077757,1752854435210,-500.0,0.00016465,2]
[373077758,1752854435377,-329.24,0.00016465,2]
[373077759,1752854435410,-500.0,0.00016465,2]
[373077760,1752854435443,-500.0,0.00016465,2]
[373077761,1752854435476,-500.0,0.00016465,2]
[373077762,1752854435508,-500.0,0.00016465,2]
[373077763,1752854435538,-500.0,0.00016465,2]
[373077764,1752854435690,-500.0,0.00016465,2]
[373077765,1752854435723,-619.58797717,0.00016465,2]
[373077766,1752854435755,-500.0,0.00016465,2]
[373077767,1752854435787,-513.97185618,0.00016465,2]
[373077768,1752854435818,-383.16656697,0.00016465,2]
[373077769,1752854435850,-500.0,0.00016465,2]
[373077770,1752854435879,-160.0,0.00016465,2]
[373077771,1752854435910,-460.0,0.00016466,2]
[373077772,1752854435940,-257.02225709,0.00016466,2]
[373077773,1752854435970,-460.0,0.00016466,2]
[373077774,1752854436000,-460.0,0.00016466,2]
[373077775,1752854436226,-460.0,0.00016466,2]
[373077776,1752854436258,-588.60721694,0.00016466,2]
[373077777,1752854436288,-460.0,0.00016466,2]
[373077778,1752854436318,-460.0,0.00016466,2]
[373077779,1752854436351,-460.0,0.00016466,2]
[373077780,1752854436380,-460.95949171,0.00016466,2]
[373077781,1752854436411,-460.0,0.00016466,2]
[373077782,1752854436443,-460.0,0.00016466,2]
[373077783,1752854436477,-460.0,0.00016466,2]
[373077784,1752854436505,-460.30387237,0.00016466,2]
[373077785,1752854436536,-80.25883796,0.00016466,2]
[373077786,1752854436872,-379.74116204,0.00016466,2]
[373077787,1752854436904,-933.41,0.00016466,2]
[373077788,1752854436935,-460.0,0.00016466,2]
[373077789,1752854436965,-460.0,0.00016466,2]
[373077790,1752854436998,-460.0,0.00016466,2]
[373077791,1752854437027,-460.0,0.00016466,2]
[373077792,1752854437057,-460.0,0.00016466,2]
[373077793,1752854437087,-460.0,0.00016466,2]
[373077794,1752854437118,-460.0,0.00016466,2]
[373077795,1752854437148,-460.0,0.00016466,2]
[373077796,1752854437557,-460.0,0.00016466,2]
[373077797,1752854437587,-440.23610767,0.00016466,2]
[373077798,1752854437619,-460.0,0.00016466,2]
[373077799,1752854437652,-1771.03,0.00016466,2]
[373077800,1752854437685,-460.0,0.00016466,2]
[373077801,1752854437715,-460.42510216,0.00016467,2]
[373077802,1752854437751,-460.0,0.00016467,2]
[373077803,1752854437781,-460.0,0.00016467,2]
[373077804,1752854437932,-406.92797081,0.00016467,2]
[373077805,1752854437963,-460.0,0.00016467,2]
[373077806,1752854437996,-460.0,0.00016467,2]
[373077807,1752854438035,-426.2930447,0.00016467,2]
[373077808,1752854438066,-590.69489118,0.00016467,2]
[373077809,1752854438095,-460.0,0.00016467,2]
[373077810,1752854438125,-460.0,0.00016467,2]
[373077811,1752854438154,-460.0,0.00016467,2]
[373077812,1752854438184,-460.0,0.00016467,2]
[373077813,1752854438216,-561.73503318,0.00016467,2]
[373077814,1752854438251,-48.69812026,0.00016467,2]
[373077815,1752854438592,-411.30187974,0.00016467,2]
[373077816,1752854438623,-327.71838445,0.00016467,2]
[373077817,1752854438653,-460.0,0.00016467,2]
[373077818,1752854438683,-460.0,0.00016467,2]
[373077819,1752854438713,-460.0,0.00016467,2]
[373077820,1752854438746,-460.0,0.00016467,2]
[373077821,1752854438776,-460.0,0.00016467,2]
[373077822,1752854438806,-460.0,0.00016467,2]
[373077823,1752854438836,-460.0,0.00016467,2]
[373077824,1752854438867,-460.0,0.00016467,2]
[373077825,1752854438938,-1193.82,0.00016467,2]
[373077826,1752854438969,-460.0,0.00016467,2]
[373077827,1752854439001,-460.0,0.00016467,2]
[373077828,1752854439033,-460.0,0.00016467,2]
[373077829,1752854439064,-460.0,0.00016467,2]
[373077830,1752854439095,-460.0,0.00016467,2]
[373077831,1752854439125,-460.0,0.00016467,2]
[373077832,1752854439158,-525.81,0.00016467,2]
[373077833,1752854439190,-460.0,0.00016467,2]
[373077834,1752854439459,-3100.4,0.00016467,2]
[373077835,1752854439492,-460.0,0.00016467,2]
[373077836,1752854439526,-1357.11,0.00016467,2]
[373077837,1752854439865,-460.0,0.00016467,2]
[373077838,1752854439897,-460.0,0.00016467,2]
[373077839,1752854439930,-460.0,0.00016467,2]
[373077840,1752854439962,-460.0,0.00016467,2]
[373077841,1752854439998,-561.96,0.00016467,2]
[373077842,1752854440029,-460.0,0.00016467,2]
[373077843,1752854440061,-460.0,0.00016467,2]
[373077844,1752854440093,-460.0,0.00016467,2]
[373077845,1752854440124,-460.0,0.00016467,2]
[373077846,1752854440155,-460.0,0.00016468,2]
[373077847,1752854440185,-157.46370735,0.00016468,2]
[373077848,1752854440411,-460.0,0.00016468,2]
[373077849,1752854440442,-460.0,0.00016468,2]
[373077850,1752854440475,-460.0,0.00016468,2]
[373077851,1752854440506,-500.0,0.00016468,2]
[373077852,1752854440537,-500.0,0.00016468,2]
[373077853,1752854440569,-460.0,0.00016468,2]
[373077854,1752854440600,-460.0,0.00016468,2]
[373077855,1752854440630,-460.0,0.00016468,2]
[373077856,1752854440660,-460.0,0.00016468,2]
[373077857,1752854440691,-460.0,0.00016468,2]
[373077858,1752854440721,-180.0,0.00016468,2]
[373077859,1752854440770,-280.0,0.00016468,2]
[373077860,1752854440799,-439.0,0.00016468,2]
[373077861,1752854440830,-460.0,0.00016468,2]
[373077862,1752854440859,-460.0,0.00016468,2]
[373077863,1752854440892,-460.0,0.00016468,2]
[373077864,1752854440932,-460.0,0.00016468,2]
[373077865,1752854440971,-460.0,0.00016468,2]
[373077866,1752854441010,-460.0,0.00016468,2]
[373077867,1752854441048,-460.0,0.00016468,2]
[373077868,1752854441085,-460.0,0.00016468,2]
[373077869,1752854441124,-460.0,0.00016468,2]
[373077870,1752854441516,-460.0,0.00016468,2]
[373077871,1752854441550,-500.0,0.00016469,2]
[373077872,1752854441584,-460.0,0.00016469,2]
[373077873,1752854441619,-618.42,0.00016469,2]
[373077874,1752854441654,-460.0,0.00016469,2]
[373077875,1752854441689,-460.0,0.00016469,2]
[373077876,1752854441726,-1394.3868789,0.00016469,2]
[373077877,1752854441760,-314.59044591,0.00016469,2]
[373077878,1752854442370,-1394.3868789,0.00016469,2]
[373077879,1752854442403,-1394.3868789,0.00016469,2]
[373077880,1752854442439,-1394.3868789,0.00016469,2]
[373077881,1752854442472,-239.2918477,0.00016469,2]
[373077882,1752854442733,-1155.0950312,0.00016469,2]
[373077883,1752854442767,-1394.3868789,0.00016469,2]
[373077884,1752854442799,-1394.3868789,0.00016469,2]
[373077885,1752854442832,-717.8755431,0.00016469,2]
[373077886,1752854443299,-676.5113358,0.00016469,2]
[373077887,1752854443335,-1394.3868789,0.00016469,2]
[373077888,1752854443368,-1394.3868789,0.00016469,2]
[373077889,1752854443402,-1467.76410189,0.00016469,2]
[373077890,1752854443520,-133.90160902,0.00016469,2]
[373077891,1752854443554,-1601.66571091,0.00016469,2]
[373077892,1752854443587,-1601.66571091,0.00016469,2]
[373077893,1752854443622,-1601.66571091,0.00016469,2]
[373077894,1752854443709,646.9579158,0.00015471,2]
[373077897,1752854468380,364.605812,0.0001547,2]
[373077898,1752854480699,230.31680385,0.0001637,2]
[373077899,1752854486566,5000.0,0.000164,2]
[373077900,1752854502317,3068.90731364,0.000164,2]
[373077902,1752854514736,1500.0,0.000273,120]
[373077908,1752854538579,557.184895,0.00013699,2]
[373077910,1752854547570,150.0,0.00015308,2]
[373077914,1752854603873,24900.0,0.00015469,2]
[373077916,1752854731717,201.52720336,0.00016367,2]
[373077917,1752854842136,-1173.0,0.00016464,2]
[373077918,1752854842162,-460.0,0.00016465,2]
[373077919,1752854842186,-460.0,0.00016465,2]
[373077920,1752854842211,-460.0,0.00016465,2]
[373077921,1752854842235,-460.0,0.00016465,2]
[373077922,1752854842259,-254.8889882,0.00016465,2]
[373077923,1752854842287,-460.0,0.00016465,2]
[373077924,1752854842314,-460.0,0.00016465,2]
[373077925,1752854842340,-460.0,0.00016465,2]
[373077926,1752854842378,-286.427507,0.00016465,2]
[373077929,1752854946734,10000.0,0.00015469,2]
[373077930,1752854976974,176.33630294,0.00016366,2]
[373077957,1752855032625,-450.0,0.00016464,2]
[373077959,1752855032635,-460.0,0.00016464,2]
[373077960,1752855032645,-300.0,0.00016464,2]
[373077962,1752855032654,-460.0,0.00016464,2]
[373077964,1752855032664,-405.24582769,0.00016464,2]
[373077966,1752855032673,-460.0,0.00016464,2]
[373077967,1752855032683,-173.572493,0.00016465,2]
[373077968,1752855032692,-460.0,0.00016465,2]
[373077971,1752855032703,-231.74363876,0.00016465,2]
[373077973,1752855032736,-228.25636124,0.00016465,2]
[373077974,1752855032746,-580.0,0.00016465,2]
[373077975,1752855032757,-460.0,0.00016465,2]
[373077976,1752855032766,-460.0,0.00016465,2]
[373077977,1752855032776,-436.68521093,0.00016465,2]
[373077978,1752855032788,-23.31478907,0.00016465,2]
[373077979,1752855032798,-460.0,0.00016465,2]
[373077980,1752855032808,-460.0,0.00016465,2]
[373077981,1752855032818,-460.0,0.00016465,2]
[373077982,1752855032827,-460.0,0.00016465,2]
[373077983,1752855032837,-418.46886425,0.00016465,2]
[373077984,1752855032847,-436.89011787,0.00016465,2]
[373077996,1752855038677,-460.0,0.00016464,2]
[373077998,1752855038688,-9.73900002,0.00016465,2]
[373078006,1752855038803,-13.37088211,0.00016465,2]
[373078007,1752855038815,-460.0,0.00016465,2]
[373078008,1752855038826,-460.0,0.00016465,2]
[373078009,1752855038836,-460.0,0.00016465,2]
[373078010,1752855038846,-460.0,0.00016465,2]
[373078011,1752855038856,-503.9,0.00016465,2]
[373078012,1752855038866,-463.1419334,0.00016465,2]
[373078013,1752855038876,-432.97117764,0.00016465,2]
[373078014,1752855038886,-460.0,0.00016465,2]
[373078015,1752855038896,-460.0,0.00016465,2]
[373078016,1752855038905,-460.0,0.00016465,2]
[373078017,1752855038915,-460.0,0.00016465,2]
[373078018,1752855038925,-460.0,0.00016465,2]
[373078019,1752855038935,-460.0,0.00016465,2]
[373078020,1752855038945,-460.0,0.00016465,2]
[373078021,1752855038955,-460.0,0.00016465,2]
[373078022,1752855038968,-460.0,0.00016465,2]
[373078024,1752855038978,-460.0,0.00016465,2]
[373078025,1752855038988,-460.0,0.00016465,2]
[373078026,1752855038998,-460.0,0.00016465,2]
[373078027,1752855039008,-583.92,0.00016465,2]
[373078028,1752855039019,-460.0,0.00016465,2]
[373078029,1752855039028,-470.19602813,0.00016465,2]
[373078030,1752855039038,-460.0,0.00016465,2]
[373078031,1752855039048,-460.0,0.00016465,2]
[373078032,1752855039058,-460.0,0.00016465,2]
[373078033,1752855039068,-460.0,0.00016465,2]
[373078034,1752855039078,-460.0,0.00016465,2]
[373078035,1752855039090,-460.0,0.00016465,2]
[373078036,1752855039099,-460.0,0.00016465,2]
[373078037,1752855039109,-460.0,0.00016465,2]
[373078038,1752855039119,-460.0,0.00016465,2]
[373078039,1752855039129,-293.84776793,0.00016465,2]
[373078040,1752855039138,-460.0,0.00016465,2]
[373078041,1752855039148,-460.0,0.00016465,2]
[373078042,1752855039158,-460.0,0.00016465,2]
[373078043,1752855039168,-460.0,0.00016465,2]
[373078044,1752855039177,-460.0,0.00016465,2]
[373078045,1752855039187,-460.0,0.00016465,2]
[373078046,1752855039197,-460.0,0.00016465,2]
[373078047,1752855039207,-460.0,0.00016465,2]
[373078048,1752855039219,-1426.04,0.00016465,2]
[373078049,1752855039229,-169.01872896,0.00016465,2]
[373078050,1752855039239,-460.0,0.00016465,2]
[373078051,1752855039248,-460.0,0.00016465,2]
[373078052,1752855039258,-462.94385114,0.00016465,2]
[373078053,1752855039268,-460.0,0.00016465,2]
[373078054,1752855039278,-460.0,0.00016465,2]
[373078055,1752855039287,-460.0,0.00016465,2]
[373078056,1752855039296,-279.33020624,0.00016465,2]
[373078057,1752855039306,-209.24072966,0.00016465,2]
[373078058,1752855039316,-291.0653308,0.00016465,2]
[373078059,1752855039326,-460.0,0.00016466,2]
[373078060,1752855039335,-460.0,0.00016466,2]
[373078061,1752855039345,-460.0,0.00016466,2]
[373078062,1752855039358,-460.0,0.00016466,2]
[373078063,1752855039368,-460.0,0.00016466,2]
[373078064,1752855039379,-513.71,0.00016466,2]
[373078065,1752855039388,-460.0,0.00016466,2]
[373078066,1752855039398,-1861.99,0.00016466,2]
[373078067,1752855039408,-460.0,0.00016466,2]
[373078068,1752855039418,-511.18,0.00016466,2]
[373078069,1752855039428,-460.0,0.00016466,2]
[373078070,1752855039442,-460.0,0.00016466,2]
[373078071,1752855039452,-460.0,0.00016466,2]
[373078072,1752855039466,-460.0,0.00016466,2]
[373078073,1752855039477,-460.0,0.00016466,2]
[373078074,1752855039487,-1623.46,0.00016466,2]
[373078075,1752855039497,-460.0,0.00016466,2]
[373078076,1752855039510,-460.0,0.00016466,2]
[373078077,1752855039520,-460.0,0.00016466,2]
[373078078,1752855039530,-460.0,0.00016466,2]
[373078079,1752855039540,-460.0,0.00016466,2]
[373078080,1752855039549,-1397.16,0.00016466,2]
[373078081,1752855039559,-623.96,0.00016466,2]
[373078082,1752855039569,-3541.99,0.00016466,2]
[373078083,1752855039579,-460.0,0.00016466,2]
[373078084,1752855039589,-460.0,0.00016466,2]
[373078085,1752855039600,-460.0,0.00016466,2]
[373078086,1752855039610,-460.0,0.00016467,2]
[373078087,1752855039620,-460.0,0.00016467,2]
[373078088,1752855039629,-1764.56,0.00016467,2]
[373078089,1752855039639,-460.0,0.00016467,2]
[373078090,1752855039648,-460.0,0.00016467,2]
[373078091,1752855039658,-533.24,0.00016467,2]
[373078092,1752855039668,-460.0,0.00016467,2]
[373078093,1752855039678,-460.0,0.00016467,2]
[373078094,1752855039688,-460.0,0.00016467,2]
[373078095,1752855039701,-647.44,0.00016467,2]
[373078096,1752855039714,-460.0,0.00016467,2]
[373078097,1752855039726,-1017.24,0.00016467,2]
[373078098,1752855039736,-460.0,0.00016467,2]
[373078099,1752855039746,-460.0,0.00016467,2]
[373078100,1752855039757,-460.0,0.00016467,2]
[373078101,1752855039767,-500.0,0.00016467,2]
[373078102,1752855039779,-460.0,0.00016468,2]
[373078103,1752855039792,-464.31744254,0.00016468,2]
[373078104,1752855039802,-460.0,0.00016468,2]
[373078105,1752855039812,-460.0,0.00016468,2]
[373078106,1752855039821,-460.0,0.00016468,2]
[373078107,1752855039833,-460.0,0.00016468,2]
[373078108,1752855039843,-460.0,0.00016468,2]
[373078109,1752855039853,-460.0,0.00016468,2]
[373078110,1752855039863,-665.13,0.00016468,2]
[373078111,1752855039872,-460.0,0.00016468,2]
[373078112,1752855039882,-460.0,0.00016468,2]
[373078113,1752855039892,-501.88,0.00016468,2]
[373078114,1752855039903,-460.0,0.00016468,2]
[373078115,1752855039914,-460.0,0.00016468,2]
[373078116,1752855039924,-460.0,0.00016468,2]
[373078117,1752855039935,-460.0,0.00016468,2]
[373078118,1752855039945,-460.0,0.00016468,2]
[373078119,1752855039955,-460.0,0.00016468,2]
[373078120,1752855039969,-460.0,0.00016468,2]
[373078121,1752855039978,-460.0,0.00016468,2]
[373078122,1752855039988,-2649.30178618,0.00016469,2]
[373078123,1752855039998,-460.0,0.00016469,2]
[373078124,1752855040008,-460.0,0.00016469,2]
[373078125,1752855040018,-500.0,0.00016469,2]
[373078126,1752855040027,-159.20515853,0.0001647,2]
[373078128,1752855040038,-460.0,0.0001647,2]
[373078129,1752855040047,-460.0,0.0001647,2]
[373078131,1752855040205,-287.51024003,0.0001647,2]
[373078133,1752855040218,-461.7204215,0.0001647,2]
[373078134,1752855040228,-460.0,0.0001647,2]
[373078135,1752855040238,-460.0,0.0001647,2]
[373078136,1752855040248,-460.0,0.0001647,2]
[373078137,1752855040257,-460.0,0.0001647,2]
[373078138,1752855040267,-465.04092329,0.0001647,2]
[373078139,1752855040276,-460.0,0.0001647,2]
[373078140,1752855040286,-290.3,0.0001647,2]
[373078141,1752855040295,-460.0,0.0001647,2]
[373078142,1752855040305,-462.88692985,0.0001647,2]
[373078143,1752855040314,-460.0,0.0001647,2]
[373078145,1752855040324,-460.0,0.0001647,2]
[373078147,1752855040334,-460.0,0.0001647,2]
[373078149,1752855040343,-460.0,0.0001647,2]
[373078151,1752855040353,-460.0,0.0001647,2]
[373078153,1752855040363,-479.07700579,0.0001647,2]
[373078155,1752855040372,-460.0,0.0001647,2]
[373078157,1752855040382,-460.0,0.0001647,2]
[373078158,1752855040391,-460.0,0.0001647,2]
[373078159,1752855040401,-473.36847848,0.0001647,2]
[373078160,1752855040410,-170.4678505,0.0001647,2]
[373078161,1752855040423,-289.5321495,0.0001647,2]
[373078162,1752855040435,-460.0,0.0001647,2]
[373078163,1752855040444,-286.59412107,0.0001647,2]
[373078164,1752855040454,-460.0,0.0001647,2]
[373078165,1752855040467,-460.0,0.0001647,2]
[373078166,1752855040476,-460.0,0.0001647,2]
[373078167,1752855040486,-2809.71,0.00016471,2]
[373078168,1752855040496,-815.75,0.00016471,2]
[373078169,1752855040506,-460.0,0.00016471,2]
[373078170,1752855040517,-500.0,0.00016473,2]
[373078171,1752855040526,-460.0,0.00016473,2]
[373078172,1752855040536,-185.02,0.00016473,2]
[373078173,1752855040545,-460.0,0.00016473,2]
[373078174,1752855040555,-466.6653743,0.00016473,2]
[373078175,1752855040565,-460.0,0.00016473,2]
[373078176,1752855040574,-400.54044011,0.00016473,2]
[373078177,1752855040583,-460.0,0.00016473,2]
[373078178,1752855040593,-460.0,0.00016473,2]
[373078179,1752855040603,-460.0,0.00016473,2]
[373078180,1752855040612,-460.0,0.00016473,2]
[373078182,1752855040621,-379.71672436,0.00016473,2]
[373078184,1752855040634,-80.28327564,0.00016473,2]
[373078186,1752855040643,-460.0,0.00016473,2]
[373078188,1752855040653,-460.0,0.00016473,2]
[373078190,1752855040662,-460.0,0.00016473,2]
[373078192,1752855040671,-460.0,0.00016473,2]
[373078194,1752855040681,-460.0,0.00016473,2]
[373078197,1752855040697,-3163.41,0.00016478,2]
[373078199,1752855040713,-993.21,0.00016478,2]
[373078201,1752855040723,-460.0,0.00016478,2]
[373078203,1752855040733,-150.0,0.000167,2]
[373078205,1752855040743,-192.0,0.00016729,3]
[373078207,1752855040753,-576.02,0.00016729,3]
[373078209,1752855040764,-220.21331213,0.00016736,2]
[373078211,1752855040774,-926.99015823,0.00016736,2]
[373078213,1752855040784,-926.99015823,0.00016736,2]
[373078215,1752855040794,-926.99015823,0.00016736,2]
[373078217,1752855040804,-926.99015823,0.00016736,2]
[373078219,1752855040814,-926.99015823,0.00016736,2]
[373078221,1752855040824,-926.99015823,0.00016736,2]
[373078223,1752855040834,-926.99015823,0.00016736,2]
[373078225,1752855040844,-926.99015823,0.00016736,2]
[373078227,1752855040854,-581.34499398,0.00016736,2]
[373078231,1752855040879,-500.0,0.0001648,2]
[373078233,1752855040889,-345.64516425,0.00016736,2]
[373078235,1752855040900,-926.99015823,0.00016736,2]
[373078237,1752855040912,-926.99015823,0.00016736,2]
[373078239,1752855040922,-60.33879115,0.00016736,2]
[373078241,1752855040934,-866.65136708,0.00016736,2]
[373078243,1752855040944,-460.0,0.00016738,2]
[373078245,1752855040953,-460.0,0.00016738,2]
[373078249,1752855040964,-460.0,0.00016738,2]
[373078253,1752855040974,-460.0,0.00016739,2]
[373078257,1752855040984,-530.05406527,0.00016739,2]
[373078261,1752855040994,-54.77616278,0.00016739,2]
[373078305,1752855041740,-405.22383722,0.00016739,2]
[373078306,1752855041750,-460.0,0.00016739,2]
[373078308,1752855041760,-460.0,0.00016739,2]
[373078310,1752855041770,-460.0,0.00016739,2]
[373078312,1752855041779,-460.0,0.00016739,2]
[373078314,1752855041789,-460.0,0.00016739,2]
[373078316,1752855041799,-460.0,0.00016739,2]
[373078318,1752855041808,-460.0,0.00016739,2]
[373078320,1752855041817,-340.24355113,0.00016739,2]
[373078322,1752855041829,-119.75644887,0.00016739,2]
[373078324,1752855041839,-460.0,0.00016739,2]
[373078326,1752855041849,-364.47856973,0.00016739,2]
[373078341,1752855041979,-465.07885507,0.00016465,2]
[373078343,1752855041990,-460.0,0.00016465,2]
[373078345,1752855042000,-460.0,0.0001647,2]
[373078347,1752855042009,-95.52143027,0.00016739,2]
[373078349,1752855042019,-460.0,0.00016739,2]
[373078351,1752855042029,-460.0,0.00016739,2]
[373078353,1752855042039,-503.9,0.00016739,2]
[373078355,1752855042048,-3.48349609,0.00016739,2]
[373078534,1752855044292,-456.51650391,0.00016739,2]
[373078536,1752855044305,-460.0,0.00016739,2]
[373078538,1752855044314,-460.0,0.00016739,2]
[373078540,1752855044324,-460.0,0.00016739,2]
[373078542,1752855044333,-460.0,0.00016739,2]
[373078544,1752855044343,-384.02029258,0.00016739,2]
[373078546,1752855044352,-171.16,0.00016739,2]
[373078548,1752855044362,-583.92,0.00016739,2]
[373078550,1752855044371,-460.0,0.00016739,2]
[373078552,1752855044381,-460.0,0.00016739,2]
[373078554,1752855044391,-460.0,0.00016739,2]
[373078556,1752855044400,-460.0,0.00016739,2]
[373078558,1752855044409,-460.0,0.00016739,2]
[373078560,1752855044419,-460.0,0.00016739,2]
[373078562,1752855044430,-460.0,0.00016739,2]
[373078564,1752855044442,-460.0,0.00016739,2]
[373078566,1752855044451,-460.0,0.00016739,2]
[373078568,1752855044461,-460.0,0.00016739,2]
[373078570,1752855044473,-1426.04,0.00016739,2]
[373078572,1752855044482,-460.0,0.00016739,2]
[373078574,1752855044492,-460.0,0.00016739,2]
[373078576,1752855044502,-460.0,0.00016739,2]
[373078578,1752855044513,-460.0,0.00016739,2]
[373078580,1752855044523,-1986.97633964,0.00016739,2]
[373078582,1752855044533,-460.0,0.0001674,2]
[373078584,1752855044543,-460.0,0.0001674,2]
[373078586,1752855044552,-460.0,0.0001674,2]
[373078588,1752855044562,-460.0,0.0001674,2]
[373078590,1752855044571,-460.0,0.0001674,2]
[373078592,1752855044580,-460.0,0.0001674,2]
[373078594,1752855044589,-460.0,0.0001674,2]
[373078596,1752855044599,-460.0,0.0001674,2]
[373078598,1752855044608,-460.0,0.0001674,2]
[373078600,1752855044617,-460.0,0.0001674,2]
[373078602,1752855044627,-460.0,0.0001674,2]
[373078604,1752855044637,-460.0,0.0001674,2]
[373078618,1752855044646,-460.0,0.0001674,2]
[373078620,1752855044771,-460.0,0.0001674,2]
[373078622,1752855044781,-513.71,0.0001674,2]
[373078624,1752855044791,-460.0,0.0001674,2]
[373078626,1752855044801,-1861.99,0.0001674,2]
[373078628,1752855044810,-460.0,0.0001674,2]
[373078630,1752855044820,-511.18,0.0001674,2]
[373078632,1752855044830,-460.0,0.0001674,2]
[373078634,1752855044840,-460.0,0.0001674,2]
[373078636,1752855044849,-460.0,0.0001674,2]
[373078638,1752855044859,-1623.46,0.0001674,2]
[373078640,1752855044868,-460.0,0.0001674,2]
[373078642,1752855044877,-460.0,0.0001674,2]
[373078644,1752855044887,-1397.16,0.0001674,2]
[373078646,1752855044896,-460.0,0.0001674,2]
[373078648,1752855044906,-623.96,0.0001674,2]
[373078650,1752855044915,-3541.99,0.0001674,2]
[373078652,1752855044925,-460.0,0.0001674,2]
[373078654,1752855044934,-460.0,0.0001674,2]
[373078657,1752855044945,-460.0,0.00016741,2]
[373078658,1752855044954,-460.0,0.00016741,2]
[373078660,1752855044967,-509.99191715,0.00016741,2]
[373078662,1752855044977,-460.0,0.00016741,2]
[373078664,1752855044986,-462.34,0.00016741,2]
[373078666,1752855044996,-1764.56,0.00016741,2]
[373078669,1752855045005,-460.0,0.00016741,2]
[373078670,1752855045015,-533.24,0.00016741,2]
[373078673,1752855045025,-460.0,0.00016741,2]
[373078674,1752855045034,-460.0,0.00016741,2]
[373078676,1752855045044,-647.44,0.00016741,2]
[373078678,1752855045053,-460.0,0.00016741,2]
[373078681,1752855045063,-1017.24,0.00016741,2]
[373078682,1752855045073,-460.0,0.00016741,2]
[373078684,1752855045082,-460.0,0.00016741,2]
[373078686,1752855045091,-460.0,0.00016741,2]
[373078689,1752855045101,-460.0,0.00016742,2]
[373078691,1752855045111,-460.0,0.00016742,2]
[373078693,1752855045121,-460.0,0.00016742,2]
[373078694,1752855045130,-460.0,0.00016742,2]
[373078697,1752855045140,-460.0,0.00016742,2]
[373078699,1752855045149,-460.0,0.00016742,2]
[373078700,1752855045159,-460.0,0.00016742,2]
[373078702,1752855045168,-665.13,0.00016742,2]
[373078705,1752855045178,-234.03,0.00016742,2]
[373078707,1752855045187,-460.0,0.00016742,2]
[373078709,1752855045197,-460.0,0.00016742,2]
[373078711,1752855045206,-460.0,0.00016742,2]
[373078713,1752855045219,-460.0,0.00016742,2]
[373078715,1752855045229,-460.0,0.00016742,2]
[373078716,1752855045238,-460.0,0.00016742,2]
[373078718,1752855045247,-460.0,0.00016742,2]